[Event "Esbjerg Efterår 2021 - Esbjergmesterskabet"]
[Site "Esbjerg, Denmark"]
[Date "2021.10.22"]
[Round "1.7"]
[White "Jensen, Henrik Tranberg"]
[Black "Marcussen, Claus"]
[Result "1-0"]
[TimeControl "1.-3. 20 min + 5 sek, 4.-7. 90 min + 30 sek"]
[WhiteElo "1960"]
[BlackElo "1543"]

1. d4 {[%clk 00:15:56]} {[%emt 00:04:14]} f5 {[%clk 00:20:09]} {[%emt
00:00:03]} 2. Nc3 {[%clk 00:15:56]} {[%emt 00:00:05]} Nf6 {[%clk 00:20:12]}
{[%emt 00:00:02]} 3. Bg5 {[%clk 00:15:59]} e6 {[%clk 00:20:15]} {[%emt
00:00:02]} 4. e4 {[%clk 00:15:59]} {[%emt 00:00:05]} fxe4 {[%clk 00:20:07]}
{[%emt 00:00:13]} 5. Nxe4 {[%clk 00:16:02]} {[%emt 00:00:01]} Be7 {[%clk
00:20:10]} {[%emt 00:00:02]} 6. Bd3 {[%clk 00:14:50]} {[%emt 00:01:17]} O-O
{[%clk 00:19:52]} {[%emt 00:00:23]} 7. Nf3 {[%clk 00:14:14]} {[%emt 00:00:41]}
Nxe4 {[%clk 00:18:49]} {[%emt 00:01:10]} 8. Bxe7 {[%clk 00:14:17]} Nxf2 {[%clk
00:18:25]} {[%emt 00:00:30]} 9. Bxd8 {[%clk 00:07:22]} {[%emt 00:06:59]} Nxd1
{[%clk 00:18:27]} {[%emt 00:00:03]} 10. Be7 {[%clk 00:06:20]} {[%emt 00:01:07]}
Re8 {[%clk 00:16:37]} {[%emt 00:01:55]} 11. Rxd1 {[%clk 00:06:02]} {[%emt
00:00:23]} Rxe7 {[%clk 00:16:40]} {[%emt 00:00:03]} 12. O-O {[%clk 00:06:04]}
{[%emt 00:00:02]} d6 {[%clk 00:16:03]} {[%emt 00:00:42]} 13. Ng5 {[%clk
00:05:02]} {[%emt 00:01:07]} g6 {[%clk 00:15:23]} {[%emt 00:00:45]} 14. Rf2
{[%clk 00:04:30]} {[%emt 00:00:37]} Bd7 {[%clk 00:14:48]} {[%emt 00:00:40]} 15.
Rdf1 {[%clk 00:04:21]} {[%emt 00:00:14]} Nc6 {[%clk 00:14:28]} {[%emt
00:00:25]} 16. Rf7 {[%clk 00:04:06]} {[%emt 00:00:19]} Rae8 {[%clk 00:14:31]}
{[%emt 00:00:02]} 17. c3 {[%clk 00:02:30]} {[%emt 00:01:40]} Rxf7 {[%clk
00:14:18]} {[%emt 00:00:18]} 18. Rxf7 {[%clk 00:02:30]} {[%emt 00:00:05]} Re7
{[%clk 00:14:21]} {[%emt 00:00:02]} 19. Rf2 {[%clk 00:02:23]} {[%emt 00:00:12]}
Nd8 {[%clk 00:13:41]} {[%emt 00:00:45]} 20. h4 {[%clk 00:02:21]} {[%emt
00:00:07]} Nf7 {[%clk 00:13:38]} {[%emt 00:00:07]} 21. Ne4 {[%clk 00:02:24]}
{[%emt 00:00:02]} Bc6 {[%clk 00:11:41]} {[%emt 00:02:02]} 22. Nf6+ {[%clk
00:02:25]} {[%emt 00:00:04]} Kg7 {[%clk 00:11:43]} {[%emt 00:00:03]} 23. h5
{[%clk 00:02:25]} {[%emt 00:00:05]} Nh6 {[%clk 00:11:31]} {[%emt 00:00:18]} 24.
g4 {[%clk 00:02:12]} {[%emt 00:00:18]} Rf7 {[%clk 00:11:01]} {[%emt 00:00:34]}
25. g5 {[%clk 00:02:14]} {[%emt 00:00:03]} Nf5 {[%clk 00:11:04]} {[%emt
00:00:02]} 26. d5 {[%clk 00:01:44]} {[%emt 00:00:35]} Bxd5 {[%clk 00:10:18]}
{[%emt 00:00:51]} 27. Bxf5 {[%clk 00:00:42]} {[%emt 00:01:08]} gxf5 {[%clk
00:10:13]} {[%emt 00:00:10]} 28. Kh2 {[%clk 00:00:23]} {[%emt 00:00:24]} Bxa2
{[%clk 00:09:55]} {[%emt 00:00:23]} 29. Kg3 {[%clk 00:00:26]} {[%emt 00:00:01]}
Rxf6 {[%clk 00:09:27]} {[%emt 00:00:33]} 30. gxf6+ {[%clk 00:00:30]} Kxf6
{[%clk 00:09:30]} {[%emt 00:00:02]} 31. b4 {[%clk 00:00:33]} {[%emt 00:00:03]}
Bd5 {[%clk 00:09:25]} {[%emt 00:00:09]} 32. Kh4 {[%clk 00:00:36]} {[%emt
00:00:02]} e5 {[%clk 00:09:16]} {[%emt 00:00:14]} 33. Rd2 {[%clk 00:00:35]}
{[%emt 00:00:06]} Bc6 {[%clk 00:09:16]} {[%emt 00:00:05]} 34. c4 {[%clk
00:00:39]} {[%emt 00:00:02]} a6 {[%clk 00:09:16]} {[%emt 00:00:04]} 35. Rd1
{[%clk 00:00:41]} {[%emt 00:00:03]} e4 {[%clk 00:09:07]} {[%emt 00:00:14]} 36.
Rg1 {[%clk 00:00:44]} Ke5 {[%clk 00:09:11]} {[%emt 00:00:02]} 37. h6 {[%clk
00:00:48]} {[%emt 00:00:01]} f4 {[%clk 00:09:00]} {[%emt 00:00:16]} 38. Rg7
{[%clk 00:00:52]} f3 {[%clk 00:09:02]} {[%emt 00:00:02]} 39. Rxh7 {[%clk
00:00:56]} {[%emt 00:00:02]} e3 {[%clk 00:08:47]} {[%emt 00:00:20]} 40. Re7+
{[%clk 00:00:59]} {[%emt 00:00:02]} Kd4 {[%clk 00:08:51]} {[%emt 00:00:01]} 41.
h7 {[%emt 00:00:30]} Kd3 {[%emt 00:00:22]} 1-0

[Event "Esbjerg Efterår 2021 - Esbjergmesterskabet"]
[Site "Esbjerg, Denmark"]
[Date "2021.10.22"]
[Round "1.8"]
[White "Christensen, Joel Nødskov"]
[Black "Jarlnæs, Erik"]
[Result "0-1"]
[TimeControl "1.-3. 20 min + 5 sek, 4.-7. 90 min + 30 sek"]
[WhiteElo "1404"]
[BlackElo "1952"]

1. d4 {[%clk 00:20:06]} {[%emt 00:00:04]} Nf6 {[%clk 00:20:06]} {[%emt
00:00:06]} 2. g3 {[%clk 00:20:04]} {[%emt 00:00:05]} e6 {[%clk 00:20:03]}
{[%emt 00:00:09]} 3. Bg2 {[%clk 00:20:02]} {[%emt 00:00:07]} d5 {[%clk
00:20:04]} {[%emt 00:00:02]} 4. Nf3 {[%clk 00:20:01]} {[%emt 00:00:06]} c5
{[%clk 00:20:04]} {[%emt 00:00:06]} 5. e3 {[%clk 00:20:03]} {[%emt 00:00:01]}
Nc6 {[%clk 00:18:54]} {[%emt 00:01:18]} 6. O-O {[%clk 00:20:00]} {[%emt
00:00:07]} Bd6 {[%clk 00:17:33]} {[%emt 00:01:26]} 7. a3 {[%clk 00:18:03]}
{[%emt 00:02:01]} b6 {[%clk 00:15:58]} {[%emt 00:01:40]} 8. c3 {[%clk
00:17:51]} {[%emt 00:00:17]} O-O {[%clk 00:14:42]} {[%emt 00:01:23]} 9. dxc5
{[%clk 00:17:49]} {[%emt 00:00:07]} bxc5 {[%clk 00:14:41]} {[%emt 00:00:07]} 10.
Bd2 {[%clk 00:17:43]} {[%emt 00:00:09]} c4 {[%clk 00:12:06]} {[%emt 00:02:39]}
11. Nd4 {[%clk 00:17:12]} {[%emt 00:00:36]} Ne5 {[%clk 00:12:04]} {[%emt
00:00:08]} 12. b4 {[%clk 00:16:53]} {[%emt 00:00:24]} cxb3 {[%clk 00:11:57]}
{[%emt 00:00:14]} 13. Qxb3 {[%clk 00:16:46]} {[%emt 00:00:09]} Ba6 {[%clk
00:11:30]} {[%emt 00:00:32]} 14. Rd1 {[%clk 00:16:07]} {[%emt 00:00:45]} Rb8
{[%clk 00:09:30]} {[%emt 00:02:05]} 15. Qa4 {[%clk 00:15:43]} {[%emt 00:00:28]}
Rb6 {[%clk 00:08:34]} {[%emt 00:01:01]} 16. Bf1 {[%clk 00:14:25]} {[%emt
00:01:24]} Bxf1 {[%clk 00:08:17]} {[%emt 00:00:21]} 17. Rxf1 {[%clk 00:14:26]}
{[%emt 00:00:04]} Qd7 {[%clk 00:07:45]} {[%emt 00:00:37]} 18. Qxd7 {[%clk
00:14:04]} {[%emt 00:00:26]} Nfxd7 {[%clk 00:07:47]} {[%emt 00:00:04]} 19. a4
{[%clk 00:14:03]} {[%emt 00:00:06]} Nc5 {[%clk 00:07:24]} {[%emt 00:00:28]} 20.
a5 {[%clk 00:13:15]} {[%emt 00:00:52]} Rb7 {[%clk 00:07:07]} {[%emt 00:00:22]}
21. Na3 {[%clk 00:13:08]} {[%emt 00:00:13]} Ne4 {[%clk 00:06:37]} {[%emt
00:00:35]} 22. Nab5 {[%clk 00:12:55]} {[%emt 00:00:17]} Bc5 {[%clk 00:06:11]}
{[%emt 00:00:31]} 23. a6 {[%clk 00:12:50]} {[%emt 00:00:08]} Rxb5 {[%clk
00:06:02]} {[%emt 00:00:14]} 24. Nxb5 {[%clk 00:12:46]} {[%emt 00:00:09]} Nxd2
{[%clk 00:06:03]} {[%emt 00:00:04]} 25. Rfd1 {[%clk 00:12:46]} {[%emt
00:00:04]} Nec4 {[%clk 00:05:19]} {[%emt 00:00:49]} 26. Ra2 {[%clk 00:12:40]}
{[%emt 00:00:13]} Rb8 {[%clk 00:05:09]} {[%emt 00:00:14]} 27. Nd4 {[%clk
00:12:15]} {[%emt 00:00:30]} Ne4 {[%clk 00:04:54]} {[%emt 00:00:20]} 28. Rc2
{[%clk 00:11:03]} {[%emt 00:01:18]} Rb6 {[%clk 00:04:25]} {[%emt 00:00:34]} 29.
Rd3 {[%clk 00:10:41]} {[%emt 00:00:26]} g6 {[%clk 00:04:12]} {[%emt 00:00:18]}
30. f3 {[%clk 00:10:17]} {[%emt 00:00:30]} Ned6 {[%clk 00:04:02]} {[%emt
00:00:15]} 31. Kg2 {[%clk 00:10:15]} {[%emt 00:00:06]} Rxa6 {[%clk 00:04:03]}
{[%emt 00:00:05]} 32. e4 {[%clk 00:09:59]} {[%emt 00:00:20]} dxe4 {[%clk
00:03:52]} {[%emt 00:00:15]} 33. fxe4 {[%clk 00:09:52]} {[%emt 00:00:13]} Nxe4
{[%clk 00:03:51]} {[%emt 00:00:06]} 34. Kf3 {[%clk 00:09:52]} {[%emt 00:00:05]}
Ned6 {[%clk 00:03:20]} {[%emt 00:00:36]} 35. Nb3 {[%clk 00:09:33]} {[%emt
00:00:24]} Ne5+ {[%clk 00:03:21]} {[%emt 00:00:05]} 0-1

[Event "Esbjerg Efterår 2021 - Esbjergmesterskabet"]
[Site "Esbjerg, Denmark"]
[Date "2021.10.22"]
[Round "1.9"]
[White "Husum, Lars"]
[Black "Jensen, Lucas"]
[Result "1-0"]
[TimeControl "1.-3. 20 min + 5 sek, 4.-7. 90 min + 30 sek"]
[WhiteElo "1876"]
[BlackElo "1372"]

1. e4 {[%clk 00:20:02]} {[%emt 00:00:07]} c6 {[%clk 00:20:07]} {[%emt
00:00:05]} 2. Nc3 {[%clk 00:20:03]} {[%emt 00:00:02]} d5 {[%clk 00:20:08]}
{[%emt 00:00:05]} 3. d4 {[%clk 00:19:48]} {[%emt 00:00:19]} dxe4 {[%clk
00:20:09]} {[%emt 00:00:03]} 4. Nxe4 {[%clk 00:19:49]} {[%emt 00:00:06]} Bf5
{[%clk 00:20:12]} 5. Ng3 {[%clk 00:19:35]} {[%emt 00:00:21]} Bg6 {[%clk
00:20:14]} 6. Nf3 {[%clk 00:19:07]} {[%emt 00:00:35]} Nd7 {[%clk 00:20:10]}
{[%emt 00:00:07]} 7. Bc4 {[%clk 00:16:53]} {[%emt 00:02:19]} e6 {[%clk
00:19:46]} {[%emt 00:00:28]} 8. O-O {[%clk 00:16:31]} {[%emt 00:00:28]} Ngf6
{[%clk 00:19:25]} {[%emt 00:00:26]} 9. Re1 {[%clk 00:15:42]} {[%emt 00:00:54]}
Be7 {[%clk 00:18:52]} {[%emt 00:00:39]} 10. Bf4 {[%clk 00:14:58]} {[%emt
00:00:50]} O-O {[%clk 00:18:33]} {[%emt 00:00:22]} 11. c3 {[%clk 00:14:34]}
{[%emt 00:00:30]} Nd5 {[%clk 00:18:21]} {[%emt 00:00:16]} 12. Bd2 {[%clk
00:14:16]} {[%emt 00:00:25]} Rc8 {[%clk 00:17:53]} {[%emt 00:00:33]} 13. Bb3
{[%clk 00:13:21]} {[%emt 00:01:00]} Bf6 {[%clk 00:17:17]} {[%emt 00:00:39]} 14.
Kh1 {[%clk 00:12:55]} {[%emt 00:00:32]} N7b6 {[%clk 00:17:03]} {[%emt
00:00:18]} 15. a4 {[%clk 00:12:28]} {[%emt 00:00:33]} Re8 {[%clk 00:16:09]}
{[%emt 00:00:58]} 16. Ne5 {[%clk 00:11:58]} {[%emt 00:00:35]} Bf5 {[%clk
00:15:00]} {[%emt 00:01:12]} 17. Nxf5 {[%clk 00:11:21]} {[%emt 00:00:44]} exf5
{[%clk 00:14:59]} {[%emt 00:00:05]} 18. Qf3 {[%clk 00:10:22]} {[%emt 00:01:05]}
g6 {[%clk 00:14:45]} {[%emt 00:00:19]} 19. a5 {[%clk 00:09:16]} {[%emt
00:01:11]} Nd7 {[%clk 00:14:12]} {[%emt 00:00:38]} 20. Bxd5 {[%clk 00:08:51]}
{[%emt 00:00:31]} Nxe5 {[%clk 00:13:47]} {[%emt 00:00:30]} 21. dxe5 {[%clk
00:08:14]} {[%emt 00:00:41]} Qxd5 {[%clk 00:13:18]} {[%emt 00:00:35]} 22. Qxd5
{[%clk 00:07:23]} {[%emt 00:00:56]} cxd5 {[%clk 00:13:15]} {[%emt 00:00:07]} 23.
exf6 {[%clk 00:07:24]} {[%emt 00:00:04]} Rxe1+ {[%clk 00:12:26]} {[%emt
00:00:54]} 24. Rxe1 {[%clk 00:07:25]} {[%emt 00:00:05]} Kf8 {[%clk 00:12:23]}
{[%emt 00:00:07]} 25. Bh6+ {[%clk 00:07:19]} {[%emt 00:00:12]} Kg8 {[%clk
00:12:10]} {[%emt 00:00:18]} 26. Re7 {[%clk 00:07:03]} {[%emt 00:00:20]} d4
{[%clk 00:11:39]} {[%emt 00:00:36]} 27. cxd4 {[%clk 00:07:06]} {[%emt
00:00:03]} Rc1+ {[%clk 00:11:42]} {[%emt 00:00:02]} 28. Bxc1 {[%clk 00:07:05]}
{[%emt 00:00:04]} 1-0